fUSD/lending_fUSD_20251223
["ID","MTS","AMOUNT","RATE_DAILY","PERIOD"]
[399529285,1766448233491,150.30615582,0.00013657,5]
[399529305,1766448632003,-1577.6972903,0.00010529,2]
[399529306,1766448632022,-5443.4927097,0.00010529,2]
[399529307,1766448632031,-91.90753854,0.00010558,2]
[399529308,1766448632044,-1108.09246146,0.00010558,2]
[399529309,1766448632053,-300.0,0.00010558,2]
[399529310,1766448632062,-300.0,0.00010558,2]
[399529311,1766448632071,-300.0,0.00010558,2]
[399529312,1766448632081,-22961.55,0.00010559,2]
[399529313,1766448632090,-1652.97,0.00010568,2]
[399529314,1766448632099,-227.28469271,0.000107,2]
[399529315,1766448632109,-166.67,0.00010931,2]
[399529316,1766448632118,-150.0,0.00010959,2]
[399529317,1766448632127,-150.0,0.00010959,2]
[399529318,1766448632136,-151.0,0.00010987,2]
[399529319,1766448632150,-200.0,0.0001099,2]
[399529320,1766448632159,-58914.6867155,0.0001099,2]
[399529321,1766448632179,-2097.0,0.0001099,2]
[399529322,1766448632191,-486.87103,0.0001099,2]
[399529323,1766448632210,-1546.56292351,0.0001099,2]
[399529324,1766448632222,-446.88,0.0001099,2]
[399529325,1766448632233,-612.07,0.0001099,2]
[399529326,1766448632245,-4472.71911497,0.0001099,2]
[399529327,1766448632257,-1938.29305677,0.0001099,2]
[399529332,1766448638161,-8391.84715925,0.0001099,2]
[399529333,1766448638171,-961.5,0.0001099,2]
[399529334,1766448638181,-3687.68,0.0001099,2]
[399529335,1766448638192,-11990.05,0.0001099,2]
[399529336,1766448638201,-19233.40139907,0.00011278,2]
[399529337,1766448638211,-1150.64014654,0.0001131,2]
[399529338,1766448638220,-31813.74271236,0.00011313,2]
[399529339,1766448638229,-220.75528451,0.00011371,2]
[399529340,1766448638239,-151.0,0.00011378,2]
[399529341,1766448638248,-500.0,0.00011378,2]
[399529342,1766448638258,-500.0,0.00011378,2]
[399529343,1766448638268,-500.0,0.00011378,2]
[399529344,1766448638279,-500.0,0.00011378,2]
[399529345,1766448638288,-163.74942596,0.00011378,2]
[399529346,1766448638299,-500.0,0.00011378,2]
[399529347,1766448638314,-500.0,0.00011378,2]
[399529348,1766448638323,-500.0,0.00011378,2]
[399529349,1766448638333,-500.0,0.00011378,2]
[399529350,1766448638343,-500.0,0.00011378,2]
[399529351,1766448638356,-500.0,0.00011378,2]
[399529352,1766448638366,-500.0,0.00011378,2]
[399529353,1766448638375,-500.0,0.00011378,2]
[399529354,1766448638385,-500.0,0.00011378,2]
[399529355,1766448638395,-500.0,0.00011378,2]
[399529356,1766448638404,-500.0,0.00011378,2]
[399529357,1766448638414,-500.0,0.00011378,2]
[399529358,1766448638425,-500.0,0.00011378,2]
[399529359,1766448638434,-500.0,0.00011378,2]
[399529360,1766448638444,-500.0,0.00011378,2]
[399529361,1766448638453,-500.0,0.00011378,2]
[399529362,1766448638463,-500.0,0.00011378,2]
[399529363,1766448638473,-500.0,0.00011378,2]
[399529364,1766448638484,-500.0,0.00011378,2]
[399529365,1766448638493,-500.0,0.00011378,2]
[399529366,1766448638503,-500.0,0.00011378,2]
[399529367,1766448638513,-500.0,0.00011378,2]
[399529368,1766448638522,-500.0,0.00011378,2]
[399529369,1766448638531,-500.0,0.00011378,2]
[399529370,1766448638541,-500.0,0.00011378,2]
[399529371,1766448638551,-500.0,0.00011378,2]
[399529372,1766448638560,-500.0,0.0001138,2]
[399529373,1766448638570,-150.0,0.0001138,2]
[399529374,1766448638579,-1000000.0,0.00011381,2]
[399529375,1766448638589,-311.47789849,0.0001141,2]
[399529376,1766448638598,-151.0,0.00011457,2]
[399529377,1766448638607,-311.47789849,0.00011459,2]
[399529378,1766448638617,-753.0,0.0001146,2]
[399529379,1766448638626,-1250.68,0.0001146,2]
[399529380,1766448638635,-23319.75,0.0001146,2]
[399529381,1766448638645,-5150.19,0.0001146,2]
[399529382,1766448638655,-200.0,0.00011481,2]
[399529383,1766448638665,-200.0,0.00011481,2]
[399529384,1766448638675,-200.0,0.00011481,2]
[399529385,1766448638685,-151.0,0.00011481,2]
[399529386,1766448638695,-500.0,0.00011481,2]
[399529387,1766448638704,-151.0,0.00011481,2]
[399529388,1766448638713,-500.0,0.00011481,2]
[399529389,1766448638722,-151.0,0.00011481,2]
[399529390,1766448638732,-500.0,0.00011481,2]
[399529391,1766448638741,-151.0,0.00011481,2]
[399529392,1766448638751,-500.0,0.00011481,2]
[399529393,1766448638760,-151.0,0.00011481,2]
[399529394,1766448638769,-500.0,0.00011481,2]
[399529395,1766448638778,-151.0,0.00011481,2]
[399529396,1766448638787,-500.0,0.00011481,2]
[399529397,1766448638797,-151.0,0.00011481,2]
[399529398,1766448638806,-151.0,0.00011481,2]
[399529399,1766448638815,-151.0,0.00011481,2]
[399529400,1766448638825,-500.0,0.00011481,2]
[399529401,1766448638835,-151.0,0.00011481,2]
[399529402,1766448638844,-500.0,0.00011481,2]
[399529403,1766448638854,-151.0,0.00011481,2]
[399529404,1766448638864,-500.0,0.00011481,2]
[399529405,1766448638873,-500.0,0.00011481,2]
[399529406,1766448638883,-500.0,0.00011481,2]
[399529407,1766448638894,-500.0,0.00011481,2]
[399529408,1766448638904,-500.0,0.00011481,2]
[399529409,1766448638913,-500.0,0.00011481,2]
[399529410,1766448638923,-500.0,0.00011481,2]
[399529411,1766448638933,-500.0,0.00011481,2]
[399529412,1766448638943,-151.0,0.00011481,2]
[399529413,1766448638952,-500.0,0.00011481,2]
[399529414,1766448638962,-151.0,0.00011481,2]
[399529415,1766448638971,-500.0,0.00011481,2]
[399529416,1766448638980,-151.0,0.00011481,2]
[399529417,1766448638990,-500.0,0.00011481,2]
[399529418,1766448639000,-151.0,0.00011481,2]
[399529419,1766448639010,-500.0,0.00011481,2]
[399529420,1766448639019,-151.0,0.00011481,2]
[399529421,1766448639029,-500.0,0.00011481,2]
[399529422,1766448639039,-151.0,0.00011481,2]
[399529423,1766448639048,-500.0,0.00011481,2]
[399529424,1766448639058,-151.0,0.00011481,2]
[399529425,1766448639068,-151.0,0.00011481,2]
[399529426,1766448639077,-151.0,0.00011481,2]
[399529427,1766448639087,-151.0,0.00011481,2]
[399529428,1766448639097,-151.0,0.00011481,2]
[399529429,1766448639106,-500.0,0.00011481,2]
[399529430,1766448639116,-151.0,0.00011481,2]
[399529431,1766448639125,-151.0,0.00011481,2]
[399529432,1766448639135,-151.0,0.00011481,2]
[399529433,1766448639144,-151.0,0.00011481,2]
[399529434,1766448639154,-151.0,0.00011481,2]
[399529435,1766448639164,-151.0,0.00011481,2]
[399529436,1766448639173,-151.0,0.00011481,2]
[399529437,1766448639183,-151.0,0.00011481,2]
[399529438,1766448639192,-151.0,0.00011481,2]
[399529439,1766448639201,-274.0,0.00011482,2]
[399529440,1766448639210,-385.0,0.00011483,2]
[399529441,1766448639220,-258.0,0.00011506,2]
[399529442,1766448639230,-264.59376241,0.00011517,2]
[399529443,1766448639240,-583.0,0.00011528,2]
[399529444,1766448639249,-1945.2707,0.00011534,2]
[399529445,1766448639258,-419.0,0.00011546,2]
[399529446,1766448639268,-1764.0,0.00011546,2]
[399529447,1766448639277,-1133.0,0.00011551,2]
[399529448,1766448639287,-151.0,0.00011556,2]
[399529449,1766448639296,-151.0,0.00011556,2]
[399529450,1766448639305,-168.0,0.00011557,2]
[399529451,1766448639316,-238.28043682,0.00011558,2]
[399529452,1766448639325,-248.77908003,0.00011558,2]
[399529453,1766448639334,-500.0,0.00011558,2]
[399529454,1766448639346,-460.65702583,0.00011558,2]
[399529455,1766448639357,-280327.491388,0.00011559,2]
[399529456,1766448639367,-151.0,0.00011559,2]
[399529457,1766448639376,-461.95087,0.00011559,2]
[399529458,1766448639385,-461.95087,0.00011559,2]
[399529459,1766448639394,-461.95087,0.00011559,2]
[399529460,1766448639403,-461.95087,0.00011559,2]
[399529461,1766448639415,-253.282782,0.00011559,2]
[399529462,1766448639424,-253.282782,0.00011559,2]
[399529463,1766448639433,-253.282782,0.00011559,2]
[399529464,1766448639444,-253.282782,0.00011559,2]
[399529465,1766448639453,-151.0,0.00011559,2]
[399529466,1766448639464,-151.0,0.00011559,2]
[399529467,1766448639473,-151.0,0.00011559,2]
[399529468,1766448639482,-289.860044,0.00011559,2]
[399529469,1766448639491,-151.0,0.00011559,2]
[399529470,1766448639500,-289.860044,0.00011559,2]
[399529471,1766448639509,-289.860044,0.00011559,2]
[399529472,1766448639519,-289.860044,0.00011559,2]
[399529473,1766448639530,-151.0,0.00011559,2]
[399529474,1766448639539,-10131.5174117,0.00011559,2]
[399529475,1766448639548,-202.47,0.00011567,2]
[399529476,1766448639558,-200.0,0.00011569,2]
[399529477,1766448639567,-1537.0,0.00011569,2]
[399529478,1766448639577,-502.74737926,0.00011569,2]
[399529479,1766448639586,-1569.46,0.00011575,2]
[399529480,1766448639596,-442.03645114,0.00011581,2]
[399529481,1766448639605,-151.0,0.00011581,2]
[399529482,1766448639614,-643.58388868,0.00011581,2]
[399529483,1766448639624,-300.0,0.00011582,2]
[399529484,1766448639634,-300.0,0.00011582,2]
[399529485,1766448639643,-250.0,0.00011582,2]
[399529486,1766448639653,-195.0,0.00011582,2]
[399529487,1766448639662,-195.0,0.00011582,2]
[399529488,1766448639671,-300.0,0.00011582,2]
[399529489,1766448639681,-250.0,0.00011582,2]
[399529490,1766448639691,-1063.0,0.00011592,2]
[399529491,1766448639700,-240.81,0.00011607,2]
[399529492,1766448639710,-420.0,0.00011607,2]
[399529493,1766448639719,-420.0,0.00011607,2]
[399529494,1766448639729,-1680.0,0.00011613,2]
[399529495,1766448639738,-195.0,0.00011614,2]
[399529496,1766448639748,-300.0,0.00011614,2]
[399529497,1766448639757,-1214.0,0.00011615,2]
[399529498,1766448639767,-500.0,0.00011616,2]
[399529499,1766448639776,-195.0,0.00011625,2]
[399529500,1766448639786,-300.0,0.00011625,2]
[399529501,1766448639795,-250.0,0.00011625,2]
[399529502,1766448639804,-1674.0,0.00011638,2]
[399529503,1766448639813,-500.0,0.00011654,2]
[399529504,1766448639823,-1752.0,0.00011661,2]
[399529505,1766448639839,-1986.0,0.00011684,2]
[399529506,1766448639857,-1661.0,0.00011707,2]
[399529507,1766448639867,-763.0,0.0001173,2]
[399529508,1766448639876,-1000.0,0.0001178,2]
[399529509,1766448639885,-166.67,0.00011833,2]
[399529510,1766448639895,-1569.46,0.00011848,2]
[399529511,1766448639904,-5175.6,0.00011881,2]
[399529512,1766448639914,-500.0,0.00011885,2]
[399529513,1766448639923,-19233.40139907,0.00011903,2]
[399529514,1766448639932,-500.0,0.00011928,2]
[399529515,1766448639942,-31813.74271235,0.00011934,2]
[399529516,1766448639951,-1000.0,0.00011939,2]
[399529517,1766448639961,-1600.0,0.00012016,2]
[399529518,1766448639971,-200.0,0.00012029,2]
[399529519,1766448639980,-200.0,0.00012029,2]
[399529520,1766448639991,-500.0,0.00012029,2]
[399529521,1766448640001,-35027.47,0.00012055,2]
[399529522,1766448640012,-151.0,0.00012064,2]
[399529523,1766448640021,-578.20924308,0.00012064,2]
[399529524,1766448640031,-1108.0,0.00012064,2]
[399529525,1766448640041,-250.0,0.00012064,2]
[399529526,1766448640051,-500.0,0.00012064,2]
[399529527,1766448640060,-250.0,0.00012064,2]
[399529528,1766448640069,-500.0,0.00012064,2]
[399529529,1766448640078,-250.0,0.00012064,2]
[399529530,1766448640088,-500.0,0.00012064,2]
[399529531,1766448640097,-250.0,0.00012064,2]
[399529532,1766448640106,-500.0,0.00012064,2]
[399529533,1766448640116,-250.0,0.00012064,2]
[399529534,1766448640125,-250.0,0.00012064,2]
[399529535,1766448640135,-209.40437684,0.00012064,2]
[399529536,1766448640144,-500.0,0.00012064,2]
[399529537,1766448640154,-250.0,0.00012064,2]
[399529538,1766448640163,-500.0,0.00012064,2]
[399529539,1766448640172,-250.0,0.00012064,2]
[399529540,1766448640184,-500.0,0.00012064,2]
[399529541,1766448640193,-250.0,0.00012064,2]
[399529542,1766448640204,-500.0,0.00012064,2]
[399529543,1766448640213,-250.0,0.00012064,2]
[399529544,1766448640224,-500.0,0.00012064,2]
[399529545,1766448640233,-250.0,0.00012064,2]
[399529547,1766448640243,-500.0,0.00012064,2]
[399529548,1766448640255,-500.0,0.00012064,2]
[399529549,1766448640264,-152.27409135,0.00012064,2]
[399529550,1766448640274,-500.0,0.00012064,2]
[399529551,1766448640283,-500.0,0.00012064,2]
[399529552,1766448640293,-500.0,0.00012064,2]
[399529553,1766448640302,-500.0,0.00012064,2]
[399529554,1766448640313,-500.0,0.00012064,2]
[399529555,1766448640324,-500.0,0.00012064,2]
[399529556,1766448640333,-500.0,0.00012064,2]
[399529557,1766448640344,-500.0,0.00012064,2]
[399529558,1766448640360,-500.0,0.00012064,2]
[399529559,1766448640370,-151.0,0.00012064,2]
[399529560,1766448640379,-500.0,0.00012064,2]
[399529561,1766448640390,-250.0,0.00012064,2]
[399529562,1766448640399,-500.0,0.00012064,2]
[399529563,1766448640408,-574.12855637,0.00012064,2]
[399529564,1766448640418,-250.0,0.00012064,2]
[399529565,1766448640427,-250.0,0.00012064,2]
[399529566,1766448640437,-250.0,0.00012064,2]
[399529567,1766448640446,-721.12765535,0.00012064,2]
[399529568,1766448640456,-250.0,0.00012064,2]
[399529569,1766448640473,-250.0,0.00012064,2]
[399529570,1766448640487,-250.0,0.00012064,2]
[399529571,1766448640498,-250.0,0.00012064,2]
[399529572,1766448640507,-250.0,0.00012064,2]
[399529573,1766448640517,-250.0,0.00012064,2]
[399529574,1766448640526,-250.0,0.00012064,2]
[399529575,1766448640535,-250.0,0.00012064,2]
[399529576,1766448640545,-250.0,0.00012064,2]
[399529577,1766448640554,-250.0,0.00012064,2]
[399529578,1766448640563,-250.0,0.00012064,2]
[399529579,1766448640573,-250.0,0.00012064,2]
[399529580,1766448640583,-250.0,0.00012064,2]
[399529581,1766448640592,-250.0,0.00012064,2]
[399529582,1766448640601,-250.0,0.00012064,2]
[399529583,1766448640610,-250.0,0.00012064,2]
[399529584,1766448640619,-250.0,0.00012064,2]
[399529585,1766448640631,-253.0068613,0.00012064,2]
[399529586,1766448640641,-250.0,0.00012064,2]
[399529587,1766448640650,-250.0,0.00012064,2]
[399529588,1766448640660,-500.0,0.00012064,2]
[399529589,1766448640670,-250.0,0.00012064,2]
[399529590,1766448640679,-250.0,0.00012064,2]
[399529591,1766448640689,-500.0,0.00012064,2]
[399529592,1766448640699,-250.0,0.00012064,2]
[399529593,1766448640712,-500.0,0.00012064,2]
[399529594,1766448640721,-250.0,0.00012064,2]
[399529595,1766448640731,-500.0,0.00012064,2]
[399529596,1766448640740,-500.0,0.00012064,2]
[399529597,1766448640749,-160.0,0.00012064,2]
[399529598,1766448640758,-500.0,0.00012064,2]
[399529599,1766448640769,-693.3919763,0.00012064,2]
[399529600,1766448640778,-151.0,0.00012064,2]
[399529601,1766448640787,-500.0,0.00012064,2]
[399529602,1766448640797,-500.0,0.00012064,2]
[399529603,1766448640806,-250.0,0.00012064,2]
[399529604,1766448640815,-500.0,0.00012064,2]
[399529605,1766448640824,-500.0,0.00012064,2]
[399529606,1766448640834,-250.0,0.00012064,2]
[399529607,1766448640843,-500.0,0.00012064,2]
[399529608,1766448640852,-500.0,0.00012064,2]
[399529609,1766448640861,-250.0,0.00012064,2]
[399529610,1766448640870,-500.0,0.00012064,2]
[399529611,1766448640880,-500.0,0.00012064,2]
[399529612,1766448641165,-250.0,0.00012064,2]
[399529613,1766448641175,-500.0,0.00012064,2]
[399529614,1766448641184,-500.0,0.00012064,2]
[399529615,1766448641194,-250.0,0.00012064,2]
[399529616,1766448641203,-500.0,0.00012064,2]
[399529617,1766448641213,-500.0,0.00012064,2]
[399529618,1766448641222,-250.0,0.00012064,2]
[399529619,1766448641232,-500.0,0.00012064,2]
[399529620,1766448641241,-250.0,0.00012064,2]
[399529621,1766448641250,-500.0,0.00012064,2]
[399529622,1766448641260,-250.0,0.00012064,2]
[399529623,1766448641269,-500.0,0.00012064,2]
[399529624,1766448641280,-250.0,0.00012064,2]
[399529625,1766448641289,-500.0,0.00012064,2]
[399529626,1766448641299,-250.0,0.00012064,2]
[399529627,1766448641308,-500.0,0.00012064,2]
[399529628,1766448641318,-250.0,0.00012064,2]
[399529629,1766448641327,-500.0,0.00012064,2]
[399529630,1766448641337,-500.0,0.00012064,2]
[399529631,1766448641348,-620.0,0.00012064,2]
[399529632,1766448641358,-400.93424353,0.00012064,2]
[399529633,1766448641367,-322.6107,0.00012064,2]
[399529634,1766448641376,-847.56526918,0.00012064,2]
[399529635,1766448641387,-209.40437684,0.00012064,2]
[399529636,1766448641396,-200.0,0.00012064,2]
[399529637,1766448641406,-207.4,0.00012064,2]
[399529638,1766448641415,-215.0738,0.00012064,2]
[399529639,1766448641425,-223.0315306,0.00012064,2]
[399529640,1766448641434,-231.28369723,0.00012064,2]
[399529641,1766448641444,-239.84119403,0.00012064,2]
[399529642,1766448641453,-248.71531821,0.00012064,2]
[399529643,1766448641462,-257.91778498,0.00012064,2]
[399529644,1766448641472,-267.46074303,0.00012064,2]
[399529645,1766448641481,-277.35679052,0.00012064,2]
[399529646,1766448641491,-151.0,0.00012083,2]
[399529647,1766448641500,-151.0,0.00012083,2]
[399529648,1766448641510,-151.0,0.00012083,2]
[399529649,1766448641519,-151.0,0.00012083,2]
[399529650,1766448641528,-151.0,0.00012083,2]
[399529651,1766448641537,-151.0,0.00012083,2]
[399529652,1766448641547,-151.0,0.00012083,2]
[399529653,1766448641556,-151.0,0.00012083,2]
[399529654,1766448641565,-151.0,0.00012089,2]
[399529655,1766448641574,-461.95087,0.00012089,2]
[399529656,1766448641584,-461.95087,0.00012089,2]
[399529657,1766448641593,-461.95087,0.00012089,2]
[399529658,1766448641601,-461.95087,0.00012089,2]
[399529659,1766448641611,-253.282782,0.00012089,2]
[399529660,1766448641620,-253.282782,0.00012089,2]
[399529661,1766448641629,-253.282782,0.00012089,2]
[399529662,1766448641638,-253.282782,0.00012089,2]
[399529663,1766448641647,-249.810564,0.00012089,2]
[399529664,1766448641656,-289.860044,0.00012089,2]
[399529665,1766448641665,-289.860044,0.00012089,2]
[399529666,1766448641674,-289.860044,0.00012089,2]
[399529667,1766448641683,-289.860044,0.00012089,2]
[399529668,1766448641692,-315.29,0.00012113,2]
[399529669,1766448641701,-1569.46,0.00012122,2]
[399529670,1766448641711,-500.0,0.00012202,2]
[399529671,1766448641720,-151.651523,0.00012218,2]
[399529672,1766448641729,-151.0,0.00012218,2]
[399529673,1766448641738,-151.0,0.00012218,2]
[399529674,1766448641747,-151.0,0.00012218,2]
[399529675,1766448641757,-1569.46,0.00012396,2]
[399529676,1766448641767,-13446.0,0.00012467,2]
[399529677,1766448641776,-525.59385387,0.00012476,2]
[399529678,1766448641785,-1000.0,0.00012495,2]
[399529679,1766448641794,-500.0,0.00012496,2]
[399529680,1766448641803,-19233.40139907,0.00012527,2]
[399529681,1766448641812,-150.0,0.00012549,2]
[399529682,1766448641823,-150.0,0.00012549,2]
[399529683,1766448641832,-232.09963481,0.00012549,2]
[399529684,1766448641842,-150.0,0.00012549,2]
[399529685,1766448641853,-150.0,0.00012549,2]
[399529686,1766448641862,-165.24498498,0.00012549,2]
[399529687,1766448641872,-150.0,0.00012549,2]
[399529688,1766448641881,-150.0,0.00012549,2]
[399529689,1766448641890,-150.0,0.00012549,2]
[399529690,1766448641899,-150.0,0.00012549,2]
[399529691,1766448641909,-150.0,0.00012549,2]
[399529692,1766448641918,-150.0,0.00012549,2]
[399529693,1766448641927,-250.0,0.00012549,2]
[399529694,1766448641936,-150.0,0.00012549,2]
[399529695,1766448641945,-151.0,0.00012549,2]
[399529696,1766448641954,-151.0,0.00012549,2]
[399529697,1766448641964,-151.0,0.00012549,2]
[399529698,1766448641974,-150.0,0.00012549,2]
[399529699,1766448641983,-500.0,0.00012549,2]
[399529700,1766448641992,-500.0,0.00012549,2]
[399529701,1766448642001,-500.0,0.00012549,2]
[399529702,1766448642010,-250.0,0.00012549,2]
[399529703,1766448642019,-31813.74271235,0.00012555,2]
[399529704,1766448642029,-150.0,0.00012576,2]
[399529705,1766448642038,-215.5420525,0.00012576,2]
[399529706,1766448642048,-150.0,0.00012576,2]
[399529707,1766448642057,-150.0,0.00012576,2]
[399529708,1766448642067,-150.0,0.00012576,2]
[399529709,1766448642076,-150.0,0.00012576,2]
[399529710,1766448642086,-150.0,0.00012576,2]
[399529711,1766448642095,-150.0,0.00012576,2]
[399529712,1766448642105,-500.0,0.00012576,2]
[399529713,1766448642114,-500.0,0.00012576,2]
[399529714,1766448642123,-500.0,0.00012576,2]
[399529715,1766448642132,-200.0,0.00012577,2]
[399529716,1766448642141,-200.0,0.00012577,2]
[399529717,1766448642150,-500.0,0.00012577,2]
[399529718,1766448642159,-15777.13013271,0.00012602,2]
[399529719,1766448642168,-150.0,0.00012604,2]
[399529720,1766448642178,-150.0,0.00012604,2]
[399529721,1766448642187,-200.0,0.00012604,2]
[399529722,1766448642196,-150.0,0.00012604,2]
[399529723,1766448642205,-150.0,0.00012604,2]
[399529724,1766448642215,-500.0,0.00012604,2]
[399529725,1766448642224,-500.0,0.00012604,2]
[399529726,1766448642234,-500.0,0.00012604,2]
[399529727,1766448642243,-151.0,0.00012612,2]
[399529728,1766448642253,-217.15233878,0.00012612,2]
[399529729,1766448642262,-595.37131296,0.00012612,2]
[399529730,1766448642271,-741.95977357,0.00012612,2]
[399529731,1766448642281,-151.0,0.00012612,2]
[399529732,1766448642290,-217.15233878,0.00012612,2]
[399529733,1766448642300,-150.0,0.00012631,2]
[399529734,1766448642308,-150.0,0.00012631,2]
[399529736,1766448642318,-150.0,0.00012631,2]
[399529738,1766448642327,-201.31035432,0.00012631,2]
[399529740,1766448642336,-500.0,0.00012631,2]
[399529741,1766448642346,-500.0,0.00012631,2]
[399529742,1766448642359,-500.0,0.00012631,2]
[399529743,1766448642368,-200.0,0.00012659,2]
[399529744,1766448642377,-246.80173823,0.00012659,2]
[399529745,1766448642387,-500.0,0.00012659,2]
[399529746,1766448642398,-500.0,0.00012659,2]
[399529747,1766448642407,-500.0,0.00012659,2]
[399529748,1766448642416,-1569.46,0.0001267,2]
[399529749,1766448642426,-151.0,0.00012685,2]
[399529750,1766448642436,-151.0,0.00012685,2]
[399529751,1766448642446,-151.0,0.00012685,2]
[399529752,1766448642455,-500.0,0.00012686,2]
[399529753,1766448642464,-500.0,0.00012686,2]
[399529754,1766448642473,-405.36136932,0.00012686,2]
[399529755,1766448642483,-151.0,0.00012686,2]
[399529756,1766448642492,-151.0,0.00012686,2]
[399529757,1766448642501,-151.0,0.00012686,2]
[399529758,1766448642510,-151.0,0.00012686,2]
[399529759,1766448642519,-151.0,0.00012691,2]
[399529760,1766448642537,-461.95087,0.00012691,2]
[399529761,1766448642549,-461.95087,0.00012691,2]
[399529763,1766448642559,-461.95087,0.00012691,2]
[399529764,1766448642568,-461.95087,0.00012691,2]
[399529765,1766448642578,-253.282782,0.00012691,2]
[399529766,1766448642587,-253.282782,0.00012691,2]
[399529767,1766448642597,-253.282782,0.00012691,2]
[399529768,1766448642606,-253.282782,0.00012691,2]
[399529769,1766448642615,-191.44852268,0.00012713,2]
[399529770,1766448642625,-500.0,0.00012713,2]
[399529771,1766448642634,-315.29,0.00012719,2]
[399529772,1766448642644,-7000.0,0.0001273,2]
[399529773,1766448642653,-166.67,0.00012735,2]
[399529774,1766448642662,-7000.0,0.0001274,2]
[399529775,1766448642674,-289.860044,0.0001274,2]
[399529776,1766448642684,-289.860044,0.0001274,2]
[399529777,1766448642694,-289.860044,0.0001274,2]
[399529778,1766448642703,-289.860044,0.0001274,2]
[399529779,1766448642712,-558.0,0.00012741,2]
[399529780,1766448642722,-533.22690655,0.00012744,2]
[399529781,1766448642731,-200.0,0.00012755,2]
[399529782,1766448642741,-200.0,0.00012756,2]
[399529783,1766448642750,-200.0,0.00012756,2]
[399529784,1766448642760,-200.0,0.00012756,2]
[399529785,1766448642769,-200.0,0.00012756,2]
[399529786,1766448642779,-200.0,0.00012756,2]
[399529787,1766448642788,-587.0,0.0001276,2]
[399529788,1766448642798,-587.0,0.0001276,2]
[399529789,1766448642807,-2351.0,0.00012775,2]
[399529790,1766448642816,-10131.5174117,0.00012798,2]
[399529791,1766448642826,-280327.491388,0.00012803,2]
[399529792,1766448642835,-151.0,0.00012803,2]
[399529793,1766448642845,-151.0,0.00012803,2]
[399529794,1766448642855,-151.0,0.00012803,2]
[399529796,1766448642865,-151.0,0.00012803,2]
[399529798,1766448642874,-179.664018,0.00012803,2]
[399529799,1766448642883,-461.95087,0.00012803,2]
[399529800,1766448642892,-461.95087,0.00012803,2]
[399529801,1766448642902,-461.95087,0.00012803,2]
[399529803,1766448642911,-461.95087,0.00012803,2]
[399529804,1766448642921,-253.282782,0.00012803,2]
[399529805,1766448642931,-253.282782,0.00012803,2]
[399529806,1766448642940,-253.282782,0.00012803,2]
[399529807,1766448642950,-253.282782,0.00012803,2]
[399529808,1766448642959,-151.0,0.00012803,2]
[399529809,1766448642968,-151.0,0.00012803,2]
[399529810,1766448642978,-289.860044,0.00012803,2]
[399529811,1766448642987,-289.860044,0.00012803,2]
[399529812,1766448642997,-151.0,0.00012803,2]
[399529813,1766448643006,-289.860044,0.00012803,2]
[399529814,1766448643016,-289.860044,0.00012803,2]
[399529815,1766448643026,-7000.0,0.0001281,2]